bitfinex-derivatives/quotes_SOLF0:USTF0_20260310
["timestamp","ask_amount","ask_price","bid_price","bid_amount"]
[1773166153402,3.33023682,87.69,87.644,10.267]
[1773166153593,10.262,87.689,87.644,10.267]
[1773166153793,15.08184473,87.689,87.644,10.267]
[1773166154197,4.81984473,87.688,87.644,10.267]
[1773166154404,4.81984473,87.686,87.643,4.93410151]
[1773166155605,3.33023682,87.68,87.643,4.93410151]
[1773166156102,8.15008155,87.67,87.627,4.93410151]
[1773166156298,4.81984473,87.67,87.627,4.93410151]
[1773166157004,8.15008155,87.68,87.627,4.93410151]
[1773166157500,8.15008155,87.68,87.635,10.268]
[1773166158201,8.15008155,87.68,87.642,10.267]
[1773166158595,10.261,87.69,87.649,10.266]
[1773166158797,13.59123682,87.69,87.649,10.266]
[1773166159002,13.59123682,87.69,87.642,4.93410151]
[1773166159403,3.33023682,87.68,87.642,15.20110151]
[1773166160107,3.33023682,87.67,87.632,10.268]
[1773166160304,3.33023682,87.67,87.628,5.11466898]
[1773166160607,4.91926191,87.669,87.628,5.11466898]
[1773166160807,4.91926191,87.667,87.624,10.269]
[1773166161905,10.265,87.663,87.624,10.269]
[1773166162109,4.91926191,87.667,87.624,15.38366898]
[1773166162309,4.91926191,87.679,87.629,5.11466898]
[1773166163004,4.91926191,87.697,87.635,5.11466898]
[1773166163206,3.33023682,87.69,87.641,5.11466898]
[1773166164411,3.33023682,87.69,87.646,10.267]
[1773166165107,10.262,87.689,87.646,10.267]
[1773166165504,4.91926191,87.688,87.646,10.267]
[1773166165810,4.91926191,87.659,87.609,5.11466898]
[1773166166009,3.33023682,87.65,87.609,5.11466898]
[1773166166408,4.91926191,87.649,87.588,196.00220568]
[1773166166606,4.91926191,87.649,87.555,20.555]
[1773166166607,4.91926191,87.629,87.577,5.11466898]
[1773166166809,3.33023682,87.62,87.577,5.11466898]
[1773166167004,3.33023682,87.61,87.56,5.11466898]
[1773166167206,3.33023682,87.59,87.54,5.11466898]
[1773166167511,3.33023682,87.58,87.54,5.11466898]
[1773166167807,3.33023682,87.57,87.524,5.11466898]
[1773166168012,3.33023682,87.58,87.524,5.11466898]
[1773166168411,3.33023682,87.57,87.524,5.11466898]
[1773166168607,48.59001669,87.758,87.501,1.98738468]
[1773166168608,4.91926191,87.621,87.538,5.11466898]
[1773166168910,3.33023682,87.62,87.561,5.11466898]
[1773166169105,3.33023682,87.62,87.506,20.566]
[1773166169106,8.24949873,87.63,87.571,5.11466898]
[1773166170012,8.24949873,87.63,87.575,10.275]
[1773166171007,8.24949873,87.63,87.581,15.38866898]
[1773166171308,4.91926191,87.649,87.591,5.11466898]
[1773166171511,4.91926191,87.649,87.6,3.33023682]
[1773166171712,3.33023682,87.66,87.601,5.11466898]
[1773166171904,4.91926191,87.656,87.556,5.11466898]
[1773166172105,159.608,87.702,87.578,10.274]
[1773166172106,3.33023682,87.62,87.578,10.274]
[1773166172509,4.91926191,87.629,87.572,5.11466898]
[1773166173508,3.33023682,87.62,87.572,5.11466898]
[1773166173812,4.91926191,87.629,87.573,5.11466898]
[1773166174204,3.33023682,87.62,87.573,5.11466898]
[1773166175312,3.33023682,87.62,87.577,10.275]
[1773166176008,3.33023682,87.62,87.577,15.38966898]
[1773166176215,3.33023682,87.64,87.583,5.11466898]
[1773166176517,3.33023682,87.63,87.583,5.11466898]
[1773166177012,3.33023682,87.62,87.583,5.11466898]
[1773166177214,3.33023682,87.62,87.591,10.273]
[1773166177615,4.91926191,87.639,87.591,10.273]
[1773166177815,4.91926191,87.639,87.567,5.11466898]
[1773166178109,4.91926191,87.638,87.567,5.11466898]
[1773166179016,8.93273789,87.65,87.567,5.11466898]
[1773166179017,4.91926191,87.63,87.572,10.275]
[1773166179516,4.91926191,87.63,87.572,5.11466898]
[1773166179717,4.91926191,87.645,87.599,10.272]
[1773166180713,4.91926191,87.665,87.608,5.11466898]
[1773166181113,8.93273789,87.68,87.608,5.11466898]
[1773166181321,4.91926191,87.678,87.608,5.11466898]
[1773166182314,4.91926191,87.665,87.612,10.271]
[1773166182509,4.91926191,87.665,87.58,8.93273789]
[1773166182510,4.91926191,87.665,87.581,5.11466898]
[1773166183411,4.91926191,87.662,87.611,10.271]
[1773166183918,10.265,87.661,87.611,10.271]
[1773166184120,4.88806715,87.66,87.611,10.271]
[1773166184316,4.88806715,87.66,87.603,10.272]
[1773166184618,8.93273789,87.67,87.57,8.93273789]
[1773166184619,4.88806715,87.65,87.583,5.11466898]
[1773166184819,4.88806715,87.65,87.587,5.11466898]
[1773166185614,4.88806715,87.65,87.606,10.271]
[1773166185918,4.88806715,87.65,87.587,5.11466898]
[1773166186315,4.88806715,87.65,87.604,10.271]
[1773166186520,2.8517924,87.649,87.604,10.271]
[1773166186720,2.8517924,87.648,87.604,10.271]
[1773166186918,2.8517924,87.647,87.604,10.271]
[1773166187113,2.8517924,87.646,87.604,10.271]
[1773166187318,2.8517924,87.645,87.604,10.271]
[1773166187515,4.83839763,87.666,87.604,4.63921194]
[1773166187819,2.85160152,87.665,87.604,4.63921194]
[1773166188018,2.85160152,87.664,87.604,4.63921194]
[1773166188221,2.85160152,87.663,87.626,10.269]
[1773166188416,2.85160152,87.662,87.626,10.269]
[1773166188616,2.85160152,87.661,87.626,10.269]
[1773166188820,2.85160152,87.66,87.626,10.269]
[1773166189120,10.263,87.674,87.633,10.268]
[1773166189323,2.8510577,87.673,87.633,10.268]
[1773166189527,2.8510577,87.672,87.633,10.268]
[1773166189821,2.8510577,87.671,87.625,10.269]
[1773166190022,4.59907451,87.669,87.603,4.73480872]
[1773166190227,4.59907451,87.667,87.603,4.73480872]
[1773166190415,2.8510577,87.666,87.603,4.73480872]
[1773166190617,2.8510577,87.665,87.603,4.73480872]
[1773166190919,10.263,87.679,87.603,4.73480872]
[1773166190920,2.8510577,87.664,87.603,4.73480872]
[1773166191120,2.8510577,87.663,87.622,4.73480872]
[1773166191328,2.8510577,87.662,87.622,4.73480872]
[1773166191523,10.263,87.679,87.622,4.73480872]
[1773166191723,2.85105726,87.678,87.622,4.73480872]
[1773166191920,2.85105726,87.677,87.635,4.73480872]
[1773166192226,2.85105726,87.676,87.635,4.73480872]
[1773166192417,2.85105726,87.675,87.635,4.73480872]
[1773166192726,2.85105726,87.674,87.64,10.267]
[1773166193026,2.85105726,87.673,87.64,10.267]
[1773166193220,2.85105726,87.672,87.64,10.267]
[1773166193416,2.85105726,87.671,87.64,10.267]
[1773166193620,2.85105726,87.67,87.64,10.267]
[1773166193827,4.59907451,87.683,87.647,10.266]
[1773166194028,2.85069477,87.682,87.647,10.266]
[1773166194323,2.85069477,87.681,87.635,4.73480872]
[1773166194519,2.85069477,87.68,87.635,4.73480872]
[1773166194722,2.85069477,87.679,87.635,4.73480872]
[1773166194917,2.85069477,87.678,87.635,4.73480872]
[1773166195124,2.85069477,87.677,87.635,4.73480872]
[1773166195323,2.85069477,87.676,87.635,4.73480872]
[1773166195518,4.59907451,87.683,87.635,4.73480872]
[1773166195519,2.85069477,87.675,87.635,4.73480872]
[1773166195728,14.85907451,87.699,87.645,4.73480872]
[1773166195923,2.8504069,87.698,87.645,4.73480872]
[1773166196125,2.8504069,87.697,87.645,4.73480872]
[1773166196422,2.8504069,87.696,87.645,4.73480872]
[1773166196618,2.8504069,87.695,87.645,4.73480872]
[1773166196826,2.8504069,87.694,87.645,4.73480872]
[1773166197021,4.59907451,87.699,87.645,4.73480872]
[1773166197022,2.8504069,87.693,87.645,4.73480872]
[1773166197225,2.8504069,87.692,87.645,4.73480872]
[1773166197427,2.8504069,87.691,87.648,10.266]
[1773166197624,6.17964099,87.69,87.648,10.266]
[1773166197823,13.1124069,87.689,87.645,4.73480872]
[1773166198126,4.59907451,87.679,87.63,4.73480872]
[1773166198325,2.8504069,87.678,87.63,4.73480872]
[1773166198527,2.8504069,87.677,87.63,4.73480872]
[1773166198727,4.59907451,87.679,87.63,4.73480872]
[1773166198921,2.85047967,87.678,87.63,4.73480872]
[1773166199124,2.85047967,87.677,87.63,4.73480872]
[1773166199426,4.59907451,87.679,87.631,4.73480872]
[1773166199627,2.85044458,87.678,87.631,4.73480872]
[1773166199817,4.59907451,87.679,87.631,4.73480872]
[1773166200016,2.85044474,87.678,87.646,10.267]
[1773166200225,4.59907451,87.694,87.646,10.267]
[1773166200425,2.85044048,87.693,87.646,10.267]
[1773166200626,10.261,87.69,87.638,4.73480872]
[1773166200925,7.44951499,87.689,87.638,4.73480872]
[1773166201135,4.59907451,87.687,87.611,4.73480872]
[1773166201323,4.59907451,87.665,87.596,4.73480872]
[1773166201524,4.59907451,87.663,87.596,4.73480872]
[1773166201824,4.59907451,87.661,87.596,4.73480872]
[1773166202126,4.59237776,87.659,87.599,10.272]
[1773166202324,4.59237776,87.657,87.599,10.272]
[1773166202526,4.59237776,87.655,87.599,10.272]
[1773166202725,4.59237776,87.651,87.599,10.272]
[1773166203028,2.85044048,87.65,87.599,10.272]
[1773166203229,7.43270842,87.649,87.599,10.272]
[1773166203528,2.85044048,87.648,87.599,10.272]
[1773166203718,7.43270842,87.647,87.599,10.272]
[1773166203917,7.42351477,87.646,87.599,10.272]
[1773166204119,2.85044048,87.645,87.581,4.73480872]
[1773166204317,20.523,87.692,87.58,8.91981011]
[1773166204318,4.46483821,87.679,87.587,4.73480872]
[1773166204517,2.8510984,87.678,87.601,4.73480872]
[1773166204720,2.8510984,87.677,87.625,4.73480872]
[1773166204918,2.8510984,87.676,87.625,4.73480872]
[1773166205120,2.8510984,87.675,87.625,4.73480872]
[1773166205326,4.4550069,87.709,87.625,4.73480872]
[1773166205524,2.85015118,87.708,87.625,4.73480872]
[1773166205832,2.85015118,87.707,87.625,4.73480872]
[1773166206034,2.85015118,87.706,87.653,4.73480872]
[1773166206221,4.4859154,87.704,87.637,4.73480872]
[1773166206531,10.263,87.679,87.637,4.73480872]
[1773166206724,2.85015118,87.678,87.637,4.73480872]
[1773166206923,2.85015118,87.677,87.637,4.73480872]
[1773166207123,2.85015118,87.676,87.638,10.267]
[1773166207324,2.85015118,87.675,87.638,10.267]
[1773166207520,4.4859154,87.687,87.638,10.267]
[1773166207723,2.85052645,87.686,87.638,10.267]
[1773166207925,2.85052645,87.685,87.645,10.267]
[1773166208135,2.85052645,87.684,87.637,4.73480872]
[1773166208429,2.85052645,87.684,87.6,8.91981011]
[1773166208430,2.85052645,87.683,87.645,4.73480872]
[1773166208630,2.85052645,87.682,87.645,4.73480872]
[1773166208819,2.85052645,87.681,87.645,4.73480872]
[1773166209022,2.85052645,87.68,87.645,4.73480872]
[1773166209221,10.261,87.696,87.647,10.266]
[1773166209426,2.85047479,87.695,87.647,10.266]
[1773166209632,2.85047479,87.694,87.645,4.73480872]
[1773166209932,13.11147479,87.693,87.645,4.73480872]
[1773166210232,2.85047479,87.692,87.645,4.73480872]
[1773166210431,2.85047479,87.691,87.645,4.73480872]
[1773166210633,2.85047479,87.69,87.645,4.73480872]
[1773166210930,2.85047479,87.689,87.645,4.73480872]
[1773166211232,2.85047479,87.688,87.645,4.73480872]
[1773166211432,2.85047479,87.687,87.646,10.267]
[1773166211731,2.85047479,87.686,87.646,10.267]
[1773166211930,4.47623967,87.695,87.645,4.73480872]
[1773166211931,2.85047479,87.685,87.645,4.73480872]
[1773166212126,2.85047479,87.684,87.638,10.267]
[1773166212331,2.85047479,87.683,87.629,4.73480872]
[1773166212531,2.85047479,87.682,87.629,4.73480872]
[1773166212734,2.85047479,87.681,87.644,10.267]
[1773166212932,2.85047479,87.68,87.644,10.267]
[1773166213131,7.38218174,87.679,87.629,4.73480872]
[1773166213329,2.85047479,87.678,87.629,4.73480872]
[1773166213525,2.85047479,87.677,87.636,10.268]
[1773166213730,2.85047479,87.676,87.636,10.268]
[1773166213930,2.85047479,87.675,87.636,10.268]
[1773166214231,4.54763051,87.695,87.637,4.73480872]
[1773166214425,2.85040903,87.694,87.637,4.73480872]
[1773166214629,2.85040903,87.693,87.637,4.73480872]
[1773166214829,2.85040903,87.692,87.637,4.73480872]
[1773166215030,2.85040903,87.691,87.637,4.73480872]
[1773166215236,2.85040903,87.69,87.643,10.267]
[1773166215433,2.85040903,87.689,87.643,10.267]
[1773166215732,10.262,87.687,87.638,10.267]
[1773166215932,2.85040903,87.686,87.638,10.267]
[1773166216128,2.85040903,87.685,87.639,4.73480872]
[1773166216330,2.85040903,87.684,87.639,4.73480872]
[1773166216531,2.85040903,87.683,87.639,4.73480872]
[1773166216732,2.85040903,87.682,87.639,4.73480872]
[1773166216934,2.85040903,87.681,87.643,4.73480872]
[1773166217135,2.85040903,87.68,87.643,4.73480872]
[1773166217333,2.85040903,87.679,87.643,4.73480872]
[1773166217534,4.53157151,87.688,87.643,4.73480872]
[1773166217734,2.85040646,87.687,87.643,4.73480872]
[1773166218038,2.85040646,87.686,87.643,4.73480872]
[1773166218244,2.85040646,87.685,87.643,4.73480872]
[1773166218430,2.85040646,87.684,87.65,10.266]
[1773166218741,2.85040646,87.684,87.643,4.73480872]
[1773166218742,4.56977424,87.682,87.626,4.73480872]
[1773166219040,4.55586156,87.68,87.626,4.73480872]
[1773166219234,4.55430614,87.678,87.626,4.73480872]
[1773166219435,4.39042465,87.676,87.626,4.73480872]
[1773166219636,4.39042465,87.674,87.626,4.73480872]
[1773166219836,2.85040646,87.673,87.627,4.72461624]
[1773166220037,2.85040646,87.672,87.627,4.72461624]
[1773166220242,2.85040646,87.671,87.627,4.72461624]
[1773166220442,2.85040646,87.67,87.627,4.72461624]
[1773166220649,2.85040646,87.669,87.627,4.72461624]
[1773166220840,2.85040646,87.668,87.627,4.72461624]
[1773166221138,2.85040646,87.667,87.627,4.72461624]
[1773166221346,2.85040646,87.666,87.63,10.268]
[1773166221550,2.85040646,87.665,87.63,10.268]
[1773166221743,2.85040646,87.664,87.63,10.268]
[1773166221949,4.39042465,87.69,87.631,4.72461624]
[1773166222151,2.85052862,87.689,87.631,4.72461624]
[1773166222352,4.24970875,87.687,87.631,4.72461624]
[1773166222548,2.85052862,87.686,87.631,4.72461624]
[1773166222747,4.23661492,87.677,87.6,8.91850167]
[1773166222954,4.23661492,87.669,87.616,4.72461624]
[1773166223147,4.23547854,87.667,87.581,4.72461624]
[1773166223450,4.23547854,87.665,87.598,4.72461624]
[1773166223651,4.23547854,87.663,87.598,4.72461624]
[1773166223844,2.85052862,87.662,87.598,4.72461624]
[1773166224045,10.266,87.65,87.606,10.271]
[1773166224251,2.85052862,87.649,87.606,10.271]
[1773166224451,2.85052862,87.648,87.606,10.271]
[1773166224750,2.85052862,87.647,87.606,10.271]
[1773166224952,2.85052862,87.646,87.606,10.271]
[1773166225247,2.85052862,87.645,87.606,10.271]
[1773166225444,2.85052862,87.644,87.606,10.271]
[1773166225646,2.85052862,87.643,87.606,10.271]
[1773166225948,0.00052862,87.642,87.613,4.72461624]
[1773166226156,4.22440283,87.676,87.613,4.72461624]
[1773166226647,8.91850167,87.69,87.613,4.72461624]
[1773166226648,4.15794506,87.669,87.613,4.72461624]
[1773166226946,8.91850167,87.67,87.628,4.72461624]
[1773166226947,10.264,87.67,87.628,4.72461624]
[1773166228247,4.13488713,87.669,87.611,4.72461624]
[1773166229448,10.266,87.65,87.611,4.72461624]
[1773166230648,4.34356994,87.646,87.588,4.72461624]
[1773166231444,4.34356994,87.646,87.591,4.72461624]
[1773166232249,10.265,87.656,87.61,4.72461624]
[1773166232452,4.18316202,87.663,87.61,4.72461624]
[1773166232648,4.18316202,87.663,87.617,10.27]
[1773166232854,4.18316202,87.663,87.618,4.72461624]
[1773166234056,10.265,87.662,87.618,4.72461624]
[1773166234250,10.265,87.662,87.585,20.99525329]
[1773166234251,4.29697207,87.661,87.601,4.72461624]
[1773166234652,10.266,87.652,87.608,10.271]
[1773166236252,10.266,87.652,87.611,10.271]
[1773166236457,4.3399234,87.677,87.612,4.72461624]
[1773166236854,4.32879407,87.669,87.612,4.72461624]
[1773166237058,10.266,87.652,87.612,4.72461624]
[1773166237254,4.32750407,87.655,87.602,10.272]
[1773166237459,4.32750407,87.655,87.602,14.99661624]
[1773166237661,4.32750407,87.655,87.603,4.72461624]
[1773166238159,4.32750407,87.655,87.58,8.91850167]
[1773166238160,10.266,87.648,87.606,14.99561624]
[1773166238353,2.85146727,87.647,87.606,14.99561624]
[1773166238557,2.85146727,87.646,87.606,14.99561624]
[1773166238758,2.85146727,87.645,87.606,14.99561624]
[1773166238958,2.85146727,87.644,87.606,14.99561624]
[1773166239159,2.85146727,87.643,87.607,4.72461624]
[1773166239359,2.85146727,87.642,87.608,10.271]
[1773166239559,2.85146727,87.641,87.608,10.271]
[1773166239756,2.85146727,87.64,87.618,10.27]
[1773166239960,8.91850167,87.67,87.618,10.27]
[1773166239961,8.91850167,87.67,87.619,4.72461624]
[1773166240161,13.30892632,87.67,87.619,4.72461624]
[1773166240461,4.39042465,87.67,87.627,4.72461624]
[1773166240861,4.39042465,87.689,87.628,10.269]
[1773166241062,4.39042465,87.689,87.629,4.72461624]
[1773166242462,10.264,87.668,87.632,4.72461624]
[1773166242658,4.39042465,87.689,87.632,4.72461624]
[1773166244063,10.263,87.677,87.634,10.268]
[1773166245969,10.264,87.67,87.634,10.268]
[1773166246269,10.264,87.67,87.632,4.72461624]
[1773166248068,10.264,87.67,87.632,14.99261624]
[1773166248271,10.263,87.678,87.633,4.4050844]
[1773166249471,10.263,87.678,87.637,10.268]
[1773166249771,4.4175012,87.672,87.618,4.1955908]
[1773166249970,4.4175012,87.649,87.587,4.1955908]
[1773166251173,14.6835012,87.649,87.606,10.271]
[1773166251372,8.91850167,87.67,87.601,4.1955908]
[1773166251572,4.4175012,87.669,87.601,4.1955908]
[1773166251967,4.4175012,87.667,87.611,10.271]
[1773166252173,7.2687367,87.666,87.611,10.271]
[1773166252375,7.2687367,87.665,87.611,10.271]
[1773166252575,4.4175012,87.664,87.611,10.271]
[1773166253179,10.266,87.651,87.611,10.271]
[1773166254279,2.85147081,87.65,87.611,10.271]
[1773166254478,2.85147081,87.649,87.618,10.27]
[1773166254676,2.85147081,87.648,87.611,4.1955908]
[1773166254877,2.85147081,87.647,87.611,4.1955908]
[1773166255076,2.85147081,87.646,87.611,4.1955908]
[1773166255278,2.85147081,87.645,87.611,4.1955908]
[1773166255477,2.85147081,87.644,87.611,4.1955908]
[1773166255677,2.85147081,87.643,87.611,4.1955908]
[1773166255873,2.85147081,87.642,87.611,4.1955908]
[1773166256179,2.85147081,87.642,87.533,178.0]
[1773166256180,2.85147081,87.641,87.583,4.1955908]
[1773166256476,4.4175012,87.639,87.564,4.1955908]
[1773166256676,4.4175012,87.629,87.564,4.1955908]
[1773166256876,8.91850167,87.63,87.564,4.1955908]
[1773166256877,4.4175012,87.627,87.564,4.1955908]
[1773166257180,4.4175012,87.625,87.564,4.1955908]
[1773166257479,4.4175012,87.623,87.564,4.1955908]
[1773166257680,2.85147081,87.622,87.564,4.1955908]
[1773166257880,4.4175012,87.611,87.549,4.1955908]
[1773166258081,4.4175012,87.609,87.549,4.1955908]
[1773166258279,4.4175012,87.607,87.549,4.1955908]
[1773166258480,4.4175012,87.605,87.549,4.1955908]
[1773166258681,4.4175012,87.603,87.549,4.1955908]
[1773166258872,10.272,87.6,87.551,10.278]
[1773166259079,2.85147081,87.599,87.549,4.1955908]
[1773166259279,10.272,87.596,87.551,10.278]
[1773166259475,2.85147081,87.595,87.551,10.278]
[1773166259681,2.85147081,87.594,87.551,10.278]
[1773166259879,2.85147081,87.593,87.551,10.278]
[1773166260084,2.85147081,87.592,87.552,4.1955908]
[1773166260283,4.4175012,87.603,87.557,10.277]
[1773166260485,2.8532011,87.602,87.557,10.277]
[1773166260783,4.4175012,87.603,87.52,29.91375496]
[1773166260784,4.4175012,87.6,87.545,10.278]
[1773166260985,4.4175012,87.6,87.52,8.91850167]
[1773166260986,2.8532011,87.599,87.546,4.1955908]
[1773166261284,2.8532011,87.598,87.546,4.1955908]
[1773166261485,10.273,87.591,87.546,4.1955908]
[1773166262180,10.273,87.591,87.546,14.4735908]
[1773166262987,10.273,87.591,87.547,4.1955908]
[1773166263383,10.272,87.599,87.549,10.278]
[1773166263578,2.85320247,87.598,87.55,4.1955908]
[1773166263786,2.85284647,87.615,87.55,4.1955908]
[1773166264086,4.4175012,87.613,87.56,4.1955908]
[1773166264282,7.27034767,87.612,87.56,4.1955908]
[1773166264486,2.85284647,87.611,87.56,4.1955908]
[1773166264688,4.4175012,87.609,87.56,4.1955908]
[1773166264888,10.272,87.603,87.561,10.276]
[1773166265086,4.4175012,87.624,87.562,4.1955908]
[1773166265282,8.91850167,87.63,87.562,4.1955908]
[1773166265283,4.4175012,87.622,87.562,4.1955908]
[1773166265488,4.4175012,87.62,87.562,4.1955908]
[1773166265688,4.4175012,87.609,87.526,4.1955908]
[1773166265891,4.4175012,87.607,87.526,4.1955908]
[1773166266084,4.4175012,87.605,87.526,4.1955908]
[1773166266390,4.4175012,87.603,87.544,4.1955908]
[1773166266689,7.27044304,87.602,87.544,4.1955908]
[1773166266887,7.27044304,87.601,87.544,4.1955908]
[1773166267087,7.27044304,87.6,87.544,14.4735908]
[1773166267290,4.4175012,87.598,87.544,14.4735908]
[1773166267490,2.85294184,87.597,87.544,14.4735908]
[1773166267690,10.271,87.605,87.558,4.1955908]
[1773166267884,2.85320022,87.604,87.558,4.1955908]
[1773166268087,2.85320022,87.603,87.558,4.1955908]
[1773166268389,4.4175012,87.62,87.558,4.1955908]
[1773166268587,4.4175012,87.618,87.57,14.4705908]
[1773166268885,4.4175012,87.618,87.494,28.10829322]
[1773166268886,4.4175012,87.669,87.581,4.1955908]
[1773166269086,4.4175012,87.649,87.596,10.272]
[1773166269784,4.4175012,87.649,87.604,10.271]
[1773166269981,4.4175012,87.666,87.605,4.1955908]
[1773166272395,10.264,87.665,87.614,10.27]
[1773166272691,4.4175012,87.664,87.561,4.1955908]
[1773166272890,10.268,87.635,87.585,10.274]
[1773166273293,4.4175012,87.634,87.577,4.1955908]
[1773166273497,10.268,87.63,87.579,10.274]
[1773166274588,10.268,87.63,87.584,10.274]
[1773166276092,10.268,87.63,87.58,4.1955908]
[1773166276698,10.268,87.63,87.581,10.274]
[1773166278000,10.269,87.623,87.58,4.1955908]
[1773166278604,4.4175012,87.63,87.58,4.1955908]
[1773166279102,10.269,87.629,87.581,4.1955908]
[1773166279602,4.15151551,87.645,87.592,4.41923638]
[1773166279809,4.15151551,87.662,87.592,4.41923638]
[1773166280402,10.266,87.655,87.606,10.271]
[1773166280818,10.266,87.655,87.592,4.41923638]
[1773166281006,2.85170707,87.654,87.592,4.41923638]
[1773166281204,10.266,87.655,87.592,4.41923638]
[1773166281205,2.85170707,87.653,87.592,4.41923638]
[1773166281414,10.266,87.65,87.595,4.41923638]
[1773166281710,2.85170707,87.649,87.595,4.41923638]
[1773166281909,10.266,87.65,87.595,4.41923638]
[1773166281910,2.85170707,87.648,87.595,4.41923638]
[1773166282110,10.267,87.646,87.597,10.272]
[1773166282314,2.8517058,87.645,87.595,4.41923638]
[1773166282610,2.8517058,87.644,87.595,4.41923638]
[1773166282805,2.85186088,87.643,87.595,4.41923638]
[1773166283006,10.269,87.629,87.581,4.41923638]
[1773166284010,10.269,87.629,87.583,4.41923638]
[1773166284705,4.15151551,87.673,87.592,4.41923638]
[1773166284911,21.7804508,87.697,87.592,4.41923638]
[1773166284912,4.15151551,87.668,87.592,4.41923638]
[1773166285109,2.85192036,87.667,87.592,4.41923638]
[1773166285301,2.85192036,87.666,87.592,4.41923638]
[1773166285609,4.15151551,87.668,87.592,4.41923638]
[1773166285610,2.85192036,87.665,87.592,4.41923638]
[1773166285806,2.85192036,87.664,87.61,4.41923638]
[1773166286011,4.15151551,87.688,87.61,4.41923638]
[1773166286212,2.85099439,87.687,87.621,4.41923638]
[1773166286409,2.85099439,87.686,87.621,4.41923638]
[1773166286705,4.15151551,87.704,87.636,4.41923638]
[1773166286906,4.15151551,87.702,87.614,4.41923638]
[1773166287115,4.15151551,87.685,87.622,4.41923638]
[1773166287412,7.00192195,87.684,87.622,4.41923638]
[1773166287608,4.15151551,87.682,87.622,4.41923638]
[1773166287808,4.15151551,87.68,87.601,4.41923638]
[1773166288007,4.15151551,87.669,87.601,4.41923638]
[1773166288207,4.15151551,87.667,87.601,4.41923638]
[1773166288409,4.15151551,87.665,87.601,4.41923638]
[1773166288714,10.267,87.644,87.601,4.41923638]
[1773166289212,2.85040644,87.661,87.601,4.41923638]
[1773166289409,2.85040644,87.66,87.601,4.41923638]
[1773166289610,2.85040644,87.659,87.601,4.41923638]
[1773166289812,2.85040644,87.658,87.601,4.41923638]
[1773166290012,2.85040644,87.657,87.601,4.41923638]
[1773166290207,2.85040644,87.656,87.601,4.41923638]
[1773166290413,2.85040644,87.655,87.602,4.41923638]
[1773166290611,2.85040644,87.654,87.602,4.41923638]
[1773166290811,2.85040644,87.653,87.602,4.41923638]
[1773166291012,10.266,87.654,87.611,10.271]
[1773166291514,10.266,87.654,87.602,4.41923638]
[1773166292312,10.266,87.654,87.603,10.272]
[1773166292510,10.266,87.65,87.603,14.69123638]
[1773166292712,10.266,87.65,87.604,4.41923638]
[1773166293110,10.266,87.65,87.605,14.69023638]
[1773166293310,10.265,87.659,87.606,4.41923638]
[1773166293510,2.8514323,87.658,87.606,4.41923638]
[1773166293716,2.8514323,87.657,87.606,4.41923638]
[1773166293910,10.266,87.655,87.608,4.41923638]
[1773166294105,2.8514323,87.654,87.608,4.41923638]
[1773166294305,2.8514323,87.653,87.608,4.41923638]
[1773166294515,4.15151551,87.664,87.608,4.41923638]
[1773166294713,10.265,87.656,87.613,4.41923638]
[1773166294914,2.85138125,87.655,87.613,4.41923638]
[1773166295121,4.15151551,87.681,87.613,4.41923638]
[1773166295315,2.85126179,87.68,87.613,4.41923638]
[1773166295513,2.85126179,87.679,87.613,4.41923638]
[1773166295716,10.264,87.667,87.621,10.269]
[1773166296016,2.85126179,87.666,87.613,4.41923638]
[1773166296212,4.15151551,87.662,87.613,4.41923638]
[1773166296413,4.15151551,87.66,87.591,4.41923638]
[1773166296612,4.15151551,87.658,87.591,4.41923638]
[1773166296816,4.15151551,87.656,87.591,4.41923638]
[1773166297116,10.267,87.641,87.597,10.272]
[1773166299016,10.266,87.648,87.6,4.41923638]
[1773166299218,2.85170992,87.647,87.6,4.41923638]
[1773166299418,2.85170992,87.646,87.6,4.41923638]
[1773166299619,2.85170992,87.645,87.6,4.41923638]
[1773166299819,4.15151551,87.669,87.6,4.41923638]
[1773166300019,4.15151551,87.667,87.6,4.41923638]
[1773166300220,4.15151551,87.665,87.6,4.41923638]
[1773166300422,4.15151551,87.663,87.6,4.41923638]
[1773166300716,4.15151551,87.661,87.6,4.41923638]
[1773166300912,7.00315331,87.66,87.6,4.41923638]
[1773166301113,2.8516378,87.659,87.6,4.41923638]
[1773166301419,10.266,87.649,87.601,4.41923638]
[1773166301631,4.15151551,87.66,87.601,4.41923638]
[1773166301820,2.85158595,87.659,87.601,4.41923638]
[1773166302022,2.85158595,87.658,87.601,4.41923638]